Cogmind - Beta 11.1 @@@ ROGUE MODE // 2022.12.14 @ 09:43:40 Player: Grubna Result: Destroyed by S-10 Pest with Light Assault Rifle Performance ------------- Evolutions (0) 0 Regions Visited (2) 400 Robots Destroyed (15) 75 Value Destroyed (453) 453 Prototype IDs (0) 0 Alien Tech Used (0) 0 Bonus (-17) -17 TOTAL SCORE: 911 Bonus ------- Friendly Fire -17 Cogmind --------- Core Integrity 0/250 Matter 300/300 Energy 258/275 System Corruption 0% Temperature Cool (8) Movement Rolling (95) Ox1 Location -10/Mines Parts ------- > --- POWER (1) -------- Deuterium Engine > --- PROPULSION (2) --- Wheel Wheel > --- UTILITY (2) ------ Improved Heat Sink Small Storage Unit > --- WEAPON (2) ------- Pulse Rifle Beam Cannon > --- INVENTORY (8) ---- Large Matter Pod (100) Improved Targeting Computer Rocket Launcher Peak State ------------ > --- POWER ------------ Deuterium Engine > --- PROPULSION ------- Wheel Wheel > --- UTILITY ---------- Improved Heat Sink Small Storage Unit > --- WEAPON ----------- Pulse Rifle Beam Cannon > --- INVENTORY -------- Large Matter Pod Improved Targeting Computer [Rating: 13] Favorites ----------- Power Ion Engine Engine Ion Engine Propulsion Aluminum Leg Leg Aluminum Leg Wheel Wheel Utility Small Storage Unit Device Heat Sink Storage Small Storage Unit Processor Improved Targeting Computer Weapon Heavy Assault Rifle Energy Gun Pulse Rifle Energy Cannon Beam Cannon Ballistic Gun Heavy Assault Rifle Build | -11 -10 -10 ------- Run | Scr Mat Min Slots Evolved . | . . . Power . | . . . Propulsion . | . . . Utility . | . . . Weapon . | . . . Parts Attached 30 | 6 9 15 Power 4 | 1 1 2 Engine 4 | 1 1 2 Core . | . . . Reactor . | . . . Propulsion 11 | 2 1 8 Treads . | . . . Leg 8 | 2 1 5 Wheel 3 | . . 3 Hover . | . . . Flight . | . . . Utility 7 | 1 4 2 Device 2 | . . 2 Storage 4 | 1 3 . Processor 1 | . 1 . Hackware . | . . . Protection . | . . . Artifact . | . . . Weapon 8 | 2 3 3 Energy Gun 1 | . . 1 Energy Cannon 1 | . . 1 Ballistic Gun 6 | 2 3 1 Ballistic Cannon . | . . . Launcher . | . . . Special Weapon . | . . . Impact Weapon . | . . . Slashing Weapon . | . . . Piercing Weapon . | . . . Special Melee Weapon . | . . . Unidentified Prototypes . | . . . Parts Lost 4 | . 1 3 Power 1 | . . 1 Propulsion . | . . . Utility . | . . . Weapon 3 | . 1 2 Highest Loss Streak 1 | . 1 1 To Critical Strikes . | . . . Average Slot Usage (%) 96 | . 98 94 Engine 12 | . 14 11 Leg 25 | . 28 23 Wheel 1 | . . 3 Device 1 | . . 2 Storage 13 | . 13 14 Processor 12 | . 13 11 Energy Gun 3 | . . 5 Energy Cannon 4 | . . 8 Ballistic Gun 18 | . 27 11 Naked Turns . | . . . Heaviest Build 21 | 14 16 21 Greatest Support 20 | 20 20 20 Greatest Overweight (x) 5 | 1 1 5 Average Overweight (x) . | . . . Largest Inventory Capacity 25 | 8 25 8 Average Capacity 7 | 7 7 8 Most Carried 5 | 5 4 4 Average Carried 2 | . 3 2 Final Capacity 8 | 8 8 8 Final Carried 3 | . 3 3 Class Distribution -------------------- 100% | Mutant Dominant Class ---------------- Mutant | -10/Materials Mutant | -10/Mines Resources | -11 -10 -10 ----------- Run | Scr Mat Min Matter Collected 887 | 254 159 474 Remotely . | . . . Salvage Created 574 | . 225 349 Parts 32 | . 20 12 Haulers Intercepted . | . . . Recyclers Shooed . | . . . Parts Field Recycled . | . . . Retrieved Matter . | . . . Parts Self-Destructed . | . . . Prevented . | . . . Kills | -11 -10 -10 ------- Run | Scr Mat Min Combat Hostiles Destroyed 13 | . 4 9 Guns 11 | . 4 7 Cannons 2 | . . 2 Classes Destroyed 5 | . 4 1 Worker 1 | . 1 . Tunneler 1 | . 1 . Watcher 2 | . 2 . Grunt 11 | . 4 7 Assembled 2 | . . 2 Best Kill Streak 7 | . 7 3 Combat Bots Only 4 | . 4 3 Max Kills in Single Turn 1 | . 1 1 Gunslinging . | . . . Exploded . | . . . Melee . | . . . Uniques/NPCs Destroyed . | . . . Combat | -11 -10 -10 -------- Run | Scr Mat Min Damage Taken 1078 | . 442 636 Core 256 | . 90 166 Absorbed by Shields . | . . . Core Remaining (%) 100 | 100 . . Volleys Fired 74 | . 28 46 Largest 2 | . 2 2 Hottest 123 | . 46 123 Shots Fired 130 | . 51 79 Gun 113 | . 51 62 Cannon 17 | . . 17 Launcher . | . . . Special . | . . . Kinetic 103 | . 51 52 Thermal 27 | . . 27 Explosive . | . . . Electromagnetic . | . . . Robot Hit Streak 14 | . 7 14 Robot Miss Streak 4 | . 4 3 Penetration Max . | . . . Secondary Targets 2 | . 2 . Max Gunslinging Chain 1 | . 1 . Shots Hit Robots 81 | . 30 51 Core Hits 30 | . 11 19 Critical Kills 1 | . 1 . Critical Parts Destroyed 1 | . . 1 Critical Strikes 2 | . 1 1 Destroy 2 | . 1 1 Melee Attacks . | . . . Impact . | . . . Slashing . | . . . Piercing . | . . . Sneak Attacks . | . . . Combat Hostiles . | . . . Follow-up Attacks . | . . . Damage Inflicted 1268 | . 496 772 Guns 1053 | . 496 557 Cannons 211 | . . 211 Explosions . | . . . Melee . | . . . Ramming 4 | . . 4 Kinetic 952 | . 496 456 Thermal 312 | . . 312 Explosive . | . . . Electromagnetic . | . . . Impact . | . . . Slashing . | . . . Piercing . | . . . Highest Corruption . | . . . Average Corruption . | . . . Corruption Purged . | . . . Corruption Blocked . | . . . Overload Shots . | . . . Overflow Damage . | . . . Projectiles . | . . . Explosions . | . . . Melee . | . . . Knockbacks . | . . . Impact . | . . . Kinetic . | . . . Secondary . | . . . Self-Inflicted Damage . | . . . Shots . | . . . Rammed . | . . . Targets Rammed 1 | . . 1 Kicked 1 | . . 1 Crushed . | . . . Highest Temperature 168 | . 75 168 Average Temperature 50 | . 40 55 Received Heat Transfer 504 | . 252 252 Siege Activations . | . . . Robots Corrupted . | . . . Combat Hostiles . | . . . Parts Fried . | . . . Impact Corruptions . | . . . Robots Melted . | . . . Combat Hostiles . | . . . Parts Melted 1 | . . 1 Heat Transferred 666 | . . 666 Parts Sabotaged . | . . . Parts Stolen . | . . . Parts Stripped . | . . . Power Chain Reactions . | . . . Missiles Intercepted . | . . . Alert | -11 -10 -10 ------- Run | Scr Mat Min Peak Influence 168 | . 168 80 Initial . | . . . Average 40 | . 47 39 Maximum Alert Level . | . . . Low Security (%) 100 | 100 100 100 Level 1 . | . . . Level 2 . | . . . Level 3 . | . . . Level 4 . | . . . Level 5 . | . . . High Security . | . . . Max Security . | . . . Squads Dispatched . | . . . Investigation . | . . . Extermination . | . . . Reinforcement . | . . . Assault . | . . . Garrison . | . . . Intercept . | . . . Searches Triggered . | . . . Construction Impeded . | . . . Haulers Reinforced . | . . . Active Scanning Responses . | . . . Cargo Convoy Interrupts . | . . . Stealth | -11 -10 -10 --------- Run | Scr Mat Min Distress Signals 1 | . 1 . Communications Jammed . | . . . Distress Signals . | . . . Times Spotted 18 | . 8 10 Peak Tracking Total 6 | . 6 3 Tactical Retreats . | . . . Traps | -11 -10 -10 ------- Run | Scr Mat Min Traps Triggered 2 | . . 2 Indirectly . | . . . Trap Hack Attempts . | . . . Triggered . | . . . Disarmed . | . . . Reprogrammed . | . . . Reused . | . . . Traps Extracted . | . . . Installed . | . . . Triggered . | . . . Machines | -11 -10 -10 ---------- Run | Scr Mat Min Machines Disabled . | . . . Max in Single Turn . | . . . Machines Sabotaged . | . . . Garrisons Compromised . | . . . Overloaded Fab Kills . | . . . Hacking | -11 -10 -10 --------- Run | Scr Mat Min Machines Accessed 3 | . 1 2 Terminals 2 | . 1 1 Fabricators . | . . . Repair Stations . | . . . Recycling Units . | . . . Scanalyzers . | . . . Garrison Access . | . . . Total Hacks 4 | . 2 2 Successful 4 | . 2 2 Failed . | . . . Catastrophic . | . . . Database Lockouts . | . . . Manual . | . . . Terminals 3 | . 2 1 Fabricators . | . . . Repair Stations . | . . . Recycling Units . | . . . Scanalyzers . | . . . Garrison Access . | . . . Terminal Hacks 4 | . 2 2 Robot Analysis 1 | . 1 . Open Door 1 | . . 1 Alert Level 1 | . 1 . Zone Layout 1 | . . 1 Fabricator Hacks . | . . . Repair Station Hacks . | . . . Recycling Unit Hacks . | . . . Scanalyzer . | . . . Garrison Access Hacks . | . . . Unauthorized Hacks . | . . . Terminals . | . . . Fabricators . | . . . Repair Stations . | . . . Recycling Units . | . . . Scanalyzers . | . . . Garrison Access . | . . . Data Cores Recovered . | . . . Used . | . . . Hacking Detections 1 | . 1 . Full Trace Events . | . . . Feedback Events . | . . . Feedback Blocked . | . . . Robot Schematics Acquired . | . . . Robots Built . | . . . Authchips . | . . . Time . | . . . Total Robot Build Rating . | . . . Part Schematics Acquired . | . . . Parts Built . | . . . Authchips . | . . . Time . | . . . Total Part Build Rating . | . . . Parts Repaired . | . . . Time . | . . . Parts Recycled . | . . . Recycled Matter . | . . . Retrieved Matter . | . . . Retrieved Components . | . . . Parts Scanalyzed . | . . . Part Schematics Acquired . | . . . Parts Damaged . | . . . Bothacking | -11 -10 -10 ------------ Run | Scr Mat Min Used RIF Installer . | . . . Robots Hacked . | . . . Non-combat . | . . . Combat . | . . . Robot Hacks Applied . | . . . Relay Couplers Released . | . . . Fabnet Peak Effective % . | . . . Robots Rewired . | . . . Allies Hacked . | . . . Hacks Repelled . | . . . Allies | -11 -10 -10 -------- Run | Scr Mat Min Total Allies . | . . . Largest Group . | . . . Highest-Rated Group . | . . . Highest-Rated Ally . | . . . Total Orders . | . . . Ally Attacks . | . . . Total Damage . | . . . Kills . | . . . Allies Corrupted . | . . . Allies Melted . | . . . Intel | -11 -10 -10 ------- Run | Scr Mat Min Robot Analysis Total 1 | . 1 . Derelict Logs Recovered 2 | . . 2 Drone Launches . | . . . Drone Recoveries . | . . . Exploration | -11 -10 -10 ------------- Run | Scr Mat Min Turns Passed 1077 | 48 432 597 Spaces Moved 633 | 33 270 330 Core 11 | 7 . 4 Treads . | . . . Legs 568 | 26 270 272 Wheels 54 | . . 54 Hover . | . . . Flight . | . . . Fastest Speed 50 | 50 120 95 Average Speed 119 | 111 120 119 Slowest Speed 300 | 190 190 300 Overloaded Moves . | . . . Propulsion Burnouts . | . . . Robots Hopped . | . . . Cave-ins Triggered . | . . . Exploration Rate (%) 30 | 2 35 53 Regions Visited 2 Branch Regions 1 Pre-discovered Areas . | . . . Known Exits Taken . | . . . Unknown Exits Taken 2 | 1 1 . Scrap Searched 1 | . . 1 Spaces Dug . | . . . Terrain Destroyed . | . . . Melee . | . . . Projectile . | . . . AOE . | . . . Terrain Rammed . | . . . Walls Destroyed . | . . . Machines Disabled . | . . . Actions | -11 -10 -10 --------- Run | Scr Mat Min Total 828 | 44 328 456 Wait 56 | . 6 50 Move 631 | 32 269 330 Hop . | . . . Pick Up 19 | 6 8 5 Fast Attach 13 | . 3 10 Attach 15 | 6 4 5 Detach . | . . . Swap 2 | . 2 . Drop 17 | . 8 9 Fire 74 | . 28 46 Melee . | . . . Ram . | . . . Kick 1 | . . 1 Crush . | . . . Escape Stasis . | . . . Rewire . | . . . Trap . | . . . Miscellaneous . | . . . Route ------- -11/Scrapyard -10/Materials -10/Mines (discovered 2 exits: [*Mat] / [*Exi]) History --------- Turn | Location | Event 23 | -11/Scrapyard | Discovered new exit (range 14) 49 | -11/Scrapyard | Entered Materials 317 | -10/Materials | Build established: Mutant 444 | -10/Materials | Discovered new exit (range 12) 481 | -10/Materials | Entered Mines 500 | -10/Mines | Core integrity fell below 50% 565 | -10/Mines | Learned Materials stockpile data 646 | -10/Mines | Excavation squad dispatched 646 | -10/Mines | A large section of the Mines collapsed 813 | -10/Mines | Learned Materials trap positions 824 | -10/Mines | Met a Derelict who couldn't figure out how to use a Trap Extractor 830 | -10/Mines | Core integrity fell below 20% 893 | -10/Mines | Deemed a non-threat by the Exiles lab entrance 894 | -10/Mines | Discovered new exit (range 5) 931 | -10/Mines | Discovered new exit (range 3) 1074 | -10/Mines | Received a Rocket Launcher from a helpful Derelict 1078 | -10/Mines | Destroyed by S-10 Pest with Light Assault Rifle Last Messages --------------- K-01 Serf collects debris. Dropped Wheel. K-01 Serf collects debris. Acquired Wheel. Acquired 18 matter. Acquired 24 matter. Acquired 20 matter. A derelict emerges from the shadows. WC-Z03(g): "Some of my friends down here think you need a mining laser when you travel the depths." WC-Z03(g): "They are crazy." WC-Z03(g): "Everyone knows a good old rocket launcher goes a long way." WC-Z03(g): "Need to get rid of a swarm? Done. Need a big hole in the wall? Done." WC-Z03(g): "Need a small hole in the wall? Leave that to the mining laser wimps, I say!" WC-Z03(g): "Would you like a rocket launcher? I know I would if I were you, so I'm going to lend you mine." WC-Z03(g) slips back into the shadows. Acquired Rocket Launcher. Map ----- +----------------------------------------------------+ | #########?????# #????????????????????????????????? | | #?????# #????????????????????????????????? | | ####### #???### #????????????????????????????????? | | ?###### #???# ##???????????????????????????????? | | ?# ## ##### #####???????????????????????????? | | ??# #???????????????????????????? | | ?## #???????????????????????????? | | ?# ## ####### ###???????????????????????????? | | ## ### #?????# ##?????????????????????????????? | | # ##?# #?????# ###??????????????????????????????? | | #??# #?????# #??????#?????????????????????????? | | [ #??# ###???? #????? #????????????????????????? | | ##??# #???? #????? #???????????????????????? | | #???### #???? ????? ???????????????????????? | | ##?????# #???? ????? #??????????????????????? | | ##??????# #???? ?????? ##?????????????????????? | | ????????# #???? ?????? #?????????????????????? | | ????????# #????##?????? ?????????????????????? | | ????????# #???????????? ??????????????????????? | | ???????## ##???????????# ??????????????????????? | | ?????### #####???????# ??????????????????????? | | ????## ##??????# #??????????????????????? | | ##### ##?????# #??????????????????????? | | %*=! ##????# #??????????????????????? | | | ##???#$ #??????????????????????? | | !#### ##??#r@#######????????????????? | | !#??## = #### s ?????????? | | #???# #######????????????????? | | !#???## ### ###??????????????????????? | | #????###### ##?# #????????????????????????? | | #?????????### #### #????????????????????????? | | ######??????## #????????????????????????? | | #???????## #######????????????????????????? | | #### #????????####??????????????????????????????? | | ### #??????????????????????????????????????????? | | ## #??????????????????????????????????????????? | | ## #######????????????????????????????????????? | | ## #########????????????????????????????? | | ### ##### ## #????????????????????????????? | | ###?# #???# ## #????????????????????????????? | | #?### ##??# #T #????????????????????????????? | | ?## #??# ## #????????????????????????????? | | ## #??# < #????????????????????????????? | | # #??#### #????????????????????????????? | | # ##?????########????????????????????????????? | | ##??????????????????????????????????????????? | | ##??????????????????????????????????????????? | | # #??????????????????????????????????????????? | | ### ###??????????????????????????????????????????? | | ??# #????????????????????????????????????????????? | +----------------------------------------------------+ Best States ------------- Heat Dissipation 39 Energy Generation 14 Energy Capacity 275 Matter Stores 300 Matter Capacity 300 Sight Range 16 Terrain Scan Density 10 Evasion (%) 55 Targeting Accuracy 6 Item Schematics ----------------- None Robot Schematics ------------------ None Fabricated ------------ Nothing Alien Tech Used ----------------- None Achievements -------------- None Challenges ------------ None Game ------ Seed ScanMyomerMicroactuators Manual? 0 Play Time 00:31:26 Cumulative 3.6 hours Start 2022.12.14 @ 09:13:09 End 2022.12.14 @ 09:43:40 Sessions 1 Manual Loads 0 Difficulty Rogue Special Mode None Game No. 9 Rogue 9 Adventurer 0 Explorer 0 Win Type - Total 0 Types 0/0/0/0/0/0/0/0/0 Lore% 2 Gallery% 9 Achievement% 7 Wizard Run 0 Options --------- ASCII 0 Keyboard 0 Movement Mouse Keybinds 0 Fullscreen 1 Font 18/SmallcapsGlow Map View 76x50 Tactical HUD 0 Map Filters NONE Filters NONE Steam 1 RUN: 7cf71ac9-8abe-4688-be9f-51bddf1d9c3a